[Event "*** Titled Tuesday 3|2 Blitz"]
[Site "Chess.com"]
[Date "2016.10.04"]
[Round "5"]
[White "ShimanovAlex"]
[Black "BillieKimbah"]
[Result "1-0"]
[WhiteElo "2604"]
[BlackElo "2518"]
[TimeControl "180+2"]
[EndTime "18:05:01 PDT"]
[Termination "ShimanovAlex won by resignation"]

1. e4 {[%clk 0:02:53.9]} 1... c5 {[%clk 0:02:59.5]} 2. Nf3 {[%clk 0:02:54.2]}
2... e6 {[%clk 0:03:00.5]} 3. d4 {[%clk 0:02:53.8]} 3... cxd4 {[%clk 0:03:01.7]}
4. Nxd4 {[%clk 0:02:55.7]} 4... Nc6 {[%clk 0:03:03.1]} 5. Nc3 {[%clk 0:02:55]}
5... Qc7 {[%clk 0:03:04]} 6. Be3 {[%clk 0:02:51.7]} 6... a6 {[%clk 0:03:03.6]}
7. Qf3 {[%clk 0:02:52.2]} 7... Nf6 {[%clk 0:03:03]} 8. O-O-O {[%clk 0:02:51.6]}
8... d6 {[%clk 0:03:04.3]} 9. Nxc6 {[%clk 0:02:50.1]} 9... Qxc6 {[%clk
0:03:03.3]} 10. Bd3 {[%clk 0:02:50.3]} 10... b5 {[%clk 0:02:57.4]} 11. Kb1
{[%clk 0:02:46.7]} 11... Bb7 {[%clk 0:02:58]} 12. Rhe1 {[%clk 0:02:46.5]} 12...
b4 {[%clk 0:02:35.3]} 13. Ne2 {[%clk 0:02:43.2]} 13... Nxe4 {[%clk 0:02:10.1]}
14. Nd4 {[%clk 0:02:24.4]} 14... Qd5 {[%clk 0:02:10.3]} 15. Bf4 {[%clk
0:02:13.7]} 15... Nc5 {[%clk 0:01:59.2]} 16. Nxe6 {[%clk 0:01:49.4]} 16... Nxe6
{[%clk 0:01:51.8]} 17. Be4 {[%clk 0:01:49.2]} 17... Qxe4 {[%clk 0:01:07.7]} 18.
Rxe4 {[%clk 0:01:38.1]} 18... Be7 {[%clk 0:01:08]} 19. Bxd6 {[%clk 0:01:29]}
19... Bxd6 {[%clk 0:00:52.5]} 20. Rxe6+ {[%clk 0:01:26.2]} 20... fxe6 {[%clk
0:00:53.3]} 21. Qxb7 {[%clk 0:01:27.1]} 21... Rd8 {[%clk 0:00:50.8]} 22. Qxg7
{[%clk 0:01:21.4]} 22... Rf8 {[%clk 0:00:51.2]} 23. Qxh7 {[%clk 0:01:20]} 23...
Rxf2 {[%clk 0:00:51.8]} 24. Qh8+ {[%clk 0:01:14.8]} 24... Rf8 {[%clk 0:00:52]}
25. Qh5+ {[%clk 0:01:12.5]} 25... Ke7 {[%clk 0:00:52.6]} 26. Qg5+ {[%clk
0:01:11.9]} 26... Ke8 {[%clk 0:00:52.6]} 27. h4 {[%clk 0:01:10]} 27... Rd7
{[%clk 0:00:40.7]} 28. h5 {[%clk 0:01:07.8]} 28... Be7 {[%clk 0:00:38.9]} 29.
Qg6+ {[%clk 0:01:08.1]} 29... Kd8 {[%clk 0:00:40.2]} 30. Rxd7+ {[%clk 0:01:08]}
30... Kxd7 {[%clk 0:00:41.6]} 31. Qd3+ {[%clk 0:01:08.8]} 31... Ke8 {[%clk
0:00:42.1]} 32. h6 {[%clk 0:01:06.5]} 32... Rf5 {[%clk 0:00:39.8]} 33. c4 {[%clk
0:01:00]} 33... bxc3 {[%clk 0:00:39.9]} 34. Qxc3 {[%clk 0:01:00.9]} 34... Bf6
{[%clk 0:00:38.9]} 35. Qc8+ {[%clk 0:01:00.7]} 35... Kf7 {[%clk 0:00:39.8]} 36.
Qd7+ {[%clk 0:01:00.3]} 36... Kg6 {[%clk 0:00:40.4]} 37. Qe8+ {[%clk 0:00:52.2]}
37... Kxh6 {[%clk 0:00:40.6]} 38. Qxe6 {[%clk 0:00:53.4]} 38... Rf1+ {[%clk
0:00:37.4]} 39. Kc2 {[%clk 0:00:54]} 39... Kg7 {[%clk 0:00:37.8]} 40. b4 {[%clk
0:00:40.5]} 40... Rf2+ {[%clk 0:00:37.6]} 41. Kd3 {[%clk 0:00:38.3]} 41... Rxg2
{[%clk 0:00:33]} 42. Qxa6 {[%clk 0:00:38.1]} 42... Rb2 {[%clk 0:00:30.5]} 43. b5
{[%clk 0:00:35.3]} 43... Kf7 {[%clk 0:00:24.9]} 44. a4 {[%clk 0:00:35.6]} 44...
Ke7 {[%clk 0:00:23.8]} 45. Qb7+ {[%clk 0:00:35.4]} 45... Kd8 {[%clk 0:00:21.2]}
46. b6 {[%clk 0:00:33.2]} 46... Be7 {[%clk 0:00:17]} 47. Qc7+ {[%clk 0:00:32.1]}
47... Ke8 {[%clk 0:00:17.8]} 48. b7 {[%clk 0:00:32.7]} 1-0

[Event "*** Titled Tuesday 3|2 Blitz"]
[Site "Chess.com"]
[Date "2016.10.04"]
[Round "5"]
[White "MattyDPerrine"]
[Black "MaestroASK"]
[Result "1-0"]
[WhiteElo "2264"]
[BlackElo "2442"]
[TimeControl "180+2"]
[EndTime "18:05:18 PDT"]
[Termination "MattyDPerrine won on time"]

1. d4 {[%clk 0:03:00.9]} 1... d6 {[%clk 0:03:01.9]} 2. g3 {[%clk 0:02:56.5]}
2... g6 {[%clk 0:03:03.8]} 3. Bg2 {[%clk 0:02:57.8]} 3... c6 {[%clk 0:03:05]} 4.
Nf3 {[%clk 0:02:58.9]} 4... Bg7 {[%clk 0:03:04.1]} 5. O-O {[%clk 0:02:59.7]}
5... e5 {[%clk 0:03:04.1]} 6. dxe5 {[%clk 0:02:13.8]} 6... dxe5 {[%clk 0:03:02]}
7. Qxd8+ {[%clk 0:02:15.7]} 7... Kxd8 {[%clk 0:03:03.5]} 8. Rd1+ {[%clk
0:02:17.6]} 8... Nd7 {[%clk 0:03:02.5]} 9. Ng5 {[%clk 0:02:12.9]} 9... Nh6
{[%clk 0:03:01.4]} 10. b3 {[%clk 0:02:06.7]} 10... Kc7 {[%clk 0:02:50.5]} 11.
Ba3 {[%clk 0:02:02.1]} 11... Bf8 {[%clk 0:02:50.9]} 12. Bb2 {[%clk 0:02:02.5]}
12... Bg7 {[%clk 0:02:40.5]} 13. Nd2 {[%clk 0:01:59.4]} 13... Nf8 {[%clk
0:02:30.7]} 14. Nc4 {[%clk 0:01:32]} 14... f6 {[%clk 0:02:27.9]} 15. Ne4 {[%clk
0:01:30.6]} 15... Nf7 {[%clk 0:02:24.9]} 16. Ned6 {[%clk 0:00:44.4]} 16... Nxd6
{[%clk 0:02:24]} 17. Rxd6 {[%clk 0:00:44.8]} 17... Be6 {[%clk 0:02:22.5]} 18.
Rad1 {[%clk 0:00:44.3]} 18... Re8 {[%clk 0:02:20]} 19. Na5 {[%clk 0:00:34.1]}
19... Bc8 {[%clk 0:02:07.4]} 20. c4 {[%clk 0:00:11.5]} 20... Ne6 {[%clk
0:02:06.1]} 21. b4 {[%clk 0:00:11.9]} 21... Rd8 {[%clk 0:02:01.2]} 22. c5 {[%clk
0:00:10.2]} 22... Rhe8 {[%clk 0:01:56.2]} 23. Nc4 {[%clk 0:00:09.7]} 23... Bf8
{[%clk 0:01:54.9]} 24. Rxd8 {[%clk 0:00:10.7]} 24... Rxd8 {[%clk 0:01:55.2]} 25.
Rxd8 {[%clk 0:00:10.9]} 25... Kxd8 {[%clk 0:01:55.4]} 26. f4 {[%clk 0:00:12.2]}
26... exf4 {[%clk 0:01:54.8]} 27. Bxf6+ {[%clk 0:00:12.9]} 27... Be7 {[%clk
0:01:55.5]} 28. Bxe7+ {[%clk 0:00:13.6]} 28... Kxe7 {[%clk 0:01:56.5]} 29. Nd6
{[%clk 0:00:15.5]} 29... Kd8 {[%clk 0:01:55.6]} 30. Nxc8 {[%clk 0:00:15.4]}
30... Kxc8 {[%clk 0:01:53.5]} 31. Bh3 {[%clk 0:00:16.6]} 31... Kd7 {[%clk
0:01:54.3]} 32. gxf4 {[%clk 0:00:17.3]} 32... Ke7 {[%clk 0:01:55.5]} 33. Bxe6
{[%clk 0:00:18.6]} 33... Kxe6 {[%clk 0:01:56.7]} 34. e4 {[%clk 0:00:20.1]} 34...
g5 {[%clk 0:01:44.7]} 35. fxg5 {[%clk 0:00:13.2]} 35... Ke5 {[%clk 0:01:45.4]}
36. Kf2 {[%clk 0:00:13.8]} 36... Kxe4 {[%clk 0:01:46.6]} 37. Kg3 {[%clk
0:00:14.8]} 37... a5 {[%clk 0:01:36.5]} 38. a3 {[%clk 0:00:14.6]} 38... axb4
{[%clk 0:01:24.6]} 39. axb4 {[%clk 0:00:16.5]} 39... Kf5 {[%clk 0:01:11.1]} 40.
h4 {[%clk 0:00:16.9]} 40... Kg6 {[%clk 0:01:07.1]} 41. Kg4 {[%clk 0:00:17.8]}
41... Kg7 {[%clk 0:01:05.2]} 42. h5 {[%clk 0:00:18.7]} 42... Kf7 {[%clk
0:01:06.1]} 43. Kf5 {[%clk 0:00:20]} 43... Ke7 {[%clk 0:01:05.8]} 44. Ke5 {[%clk
0:00:21.1]} 44... Kf7 {[%clk 0:01:05.6]} 45. Kd6 {[%clk 0:00:21.6]} 1-0

[Event "*** Titled Tuesday 3|2 Blitz"]
[Site "Chess.com"]
[Date "2016.10.04"]
[Round "5"]
[White "pKiLz5Rn9b"]
[Black "daro94"]
[Result "0-1"]
[WhiteElo "2524"]
[BlackElo "2680"]
[TimeControl "180+2"]
[EndTime "18:05:36 PDT"]
[Termination "daro94 won by checkmate"]

1. e4 {[%clk 0:03:01.9]} 1... e5 {[%clk 0:02:56.5]} 2. Nf3 {[%clk 0:03:02.3]}
2... Nc6 {[%clk 0:02:57.9]} 3. Bc4 {[%clk 0:03:03.9]} 3... Bc5 {[%clk
0:02:58.7]} 4. c3 {[%clk 0:03:05.1]} 4... Nf6 {[%clk 0:02:59]} 5. d3 {[%clk
0:03:06.7]} 5... O-O {[%clk 0:02:53.5]} 6. O-O {[%clk 0:03:06.9]} 6... a6 {[%clk
0:02:47.9]} 7. h3 {[%clk 0:03:06.1]} 7... d6 {[%clk 0:02:44.2]} 8. Nbd2 {[%clk
0:03:05]} 8... Be6 {[%clk 0:02:43.7]} 9. Bb3 {[%clk 0:03:04.1]} 9... Bxb3 {[%clk
0:02:34.7]} 10. axb3 {[%clk 0:03:04.9]} 10... d5 {[%clk 0:02:29.3]} 11. b4
{[%clk 0:03:04.1]} 11... Bd6 {[%clk 0:02:26.1]} 12. Qe2 {[%clk 0:03:05.3]} 12...
Re8 {[%clk 0:02:25.1]} 13. Rd1 {[%clk 0:03:03.5]} 13... Ne7 {[%clk 0:02:20.9]}
14. Nf1 {[%clk 0:02:56.2]} 14... h6 {[%clk 0:02:11.4]} 15. Ng3 {[%clk
0:02:55.8]} 15... c6 {[%clk 0:02:10.5]} 16. Nh2 {[%clk 0:02:49]} 16... Qd7
{[%clk 0:02:04.5]} 17. Qf3 {[%clk 0:02:41.7]} 17... Qe6 {[%clk 0:01:58.7]} 18.
Nhf1 {[%clk 0:02:26.5]} 18... Rad8 {[%clk 0:01:41.1]} 19. Ne3 {[%clk 0:02:26.9]}
19... Kh7 {[%clk 0:01:17.9]} 20. Nef5 {[%clk 0:02:21.5]} 20... Nxf5 {[%clk
0:01:18.7]} 21. Nxf5 {[%clk 0:02:23.4]} 21... Bf8 {[%clk 0:01:18.7]} 22. Be3
{[%clk 0:02:21.4]} 22... g6 {[%clk 0:01:16.8]} 23. Ng3 {[%clk 0:02:20.7]} 23...
Bg7 {[%clk 0:01:13.7]} 24. Bb6 {[%clk 0:02:18.4]} 24... Rd7 {[%clk 0:01:14.2]}
25. Re1 {[%clk 0:02:12.5]} 25... dxe4 {[%clk 0:01:01.6]} 26. dxe4 {[%clk
0:02:11.8]} 26... Qb3 {[%clk 0:01:02.7]} 27. Qe2 {[%clk 0:02:08.4]} 27... h5
{[%clk 0:00:57.4]} 28. Rad1 {[%clk 0:01:59.8]} 28... Bh6 {[%clk 0:00:55.2]} 29.
Qf3 {[%clk 0:01:42.6]} 29... Bf4 {[%clk 0:00:48.3]} 30. Be3 {[%clk 0:01:31.3]}
30... Bxe3 {[%clk 0:00:37.2]} 31. fxe3 {[%clk 0:01:18.3]} 31... Rxd1 {[%clk
0:00:25.9]} 32. Rxd1 {[%clk 0:01:20.2]} 32... Kg7 {[%clk 0:00:26.9]} 33. Rf1
{[%clk 0:01:14.7]} 33... Qe6 {[%clk 0:00:23.8]} 34. Rd1 {[%clk 0:01:13.9]} 34...
Qb3 {[%clk 0:00:24.3]} 35. Rf1 {[%clk 0:01:14.6]} 35... Qe6 {[%clk 0:00:25.5]}
36. Rd1 {[%clk 0:01:14.9]} 36... Re7 {[%clk 0:00:27]} 37. Rd8 {[%clk 0:00:42]}
37... Rd7 {[%clk 0:00:23.7]} 38. Rb8 {[%clk 0:00:40.1]} 38... Qd6 {[%clk
0:00:21.5]} 39. Rc8 {[%clk 0:00:36.5]} 39... Rd8 {[%clk 0:00:20.7]} 40. Rxd8
{[%clk 0:00:31.9]} 40... Qxd8 {[%clk 0:00:22.6]} 41. Kf2 {[%clk 0:00:32.7]}
41... h4 {[%clk 0:00:18.9]} 42. Nf1 {[%clk 0:00:32]} 42... Qd3 {[%clk
0:00:19.5]} 43. Kg1 {[%clk 0:00:25.3]} 43... Nxe4 {[%clk 0:00:19.8]} 44. Qg4
{[%clk 0:00:25.9]} 44... g5 {[%clk 0:00:15.3]} 45. Qf5 {[%clk 0:00:23.4]} 45...
f6 {[%clk 0:00:14.3]} 46. Qc8 {[%clk 0:00:18.9]} 46... Ng3 {[%clk 0:00:09]} 47.
Qxb7+ {[%clk 0:00:07.1]} 47... Kg6 {[%clk 0:00:10.5]} 48. Nh2 {[%clk 0:00:05.4]}
48... Qd1+ {[%clk 0:00:10.2]} 49. Kf2 {[%clk 0:00:07]} 49... Qe2+ {[%clk
0:00:11.3]} 50. Kg1 {[%clk 0:00:08]} 50... Qxe3# {[%clk 0:00:11.9]} 0-1

[Event "*** Titled Tuesday 3|2 Blitz"]
[Site "Chess.com"]
[Date "2016.10.04"]
[Round "5"]
[White "chito89"]
[Black "Dr-Bassem"]
[Result "1-0"]
[WhiteElo "2584"]
[BlackElo "2595"]
[TimeControl "180+2"]
[EndTime "18:05:52 PDT"]
[Termination "chito89 won on time"]

1. e4 {[%clk 0:03:02]} 1... e5 {[%clk 0:02:53]} 2. Bc4 {[%clk 0:03:01.5]} 2...
Nc6 {[%clk 0:02:53.6]} 3. d3 {[%clk 0:03:02]} 3... Bc5 {[%clk 0:02:53]} 4. Nc3
{[%clk 0:02:59.3]} 4... d6 {[%clk 0:02:53.1]} 5. Nge2 {[%clk 0:03:00.1]} 5...
Na5 {[%clk 0:02:41.2]} 6. O-O {[%clk 0:02:58.9]} 6... Nxc4 {[%clk 0:02:41.6]} 7.
dxc4 {[%clk 0:03:00.5]} 7... Be6 {[%clk 0:02:40.8]} 8. Qd3 {[%clk 0:03:00.1]}
8... Qd7 {[%clk 0:02:27.5]} 9. Qg3 {[%clk 0:02:35.6]} 9... f6 {[%clk 0:02:20.1]}
10. b3 {[%clk 0:02:35.4]} 10... g5 {[%clk 0:02:12]} 11. Be3 {[%clk 0:02:33]}
11... Bb6 {[%clk 0:02:00.8]} 12. Rad1 {[%clk 0:02:24.9]} 12... Qf7 {[%clk
0:01:57.2]} 13. c5 {[%clk 0:02:10.3]} 13... Bxc5 {[%clk 0:01:53.6]} 14. Bxc5
{[%clk 0:02:10.2]} 14... dxc5 {[%clk 0:01:55.5]} 15. Nd5 {[%clk 0:01:40.6]}
15... c6 {[%clk 0:01:27.9]} 16. Ne3 {[%clk 0:01:41.3]} 16... Ne7 {[%clk
0:01:25.8]} 17. Rd6 {[%clk 0:01:39.9]} 17... Rd8 {[%clk 0:01:22.9]} 18. Rfd1
{[%clk 0:01:34]} 18... Rxd6 {[%clk 0:01:23.1]} 19. Rxd6 {[%clk 0:01:35.5]} 19...
Nc8 {[%clk 0:01:01.7]} 20. Rd1 {[%clk 0:01:35.9]} 20... Ke7 {[%clk 0:00:53.7]}
21. h4 {[%clk 0:01:26]} 21... h6 {[%clk 0:00:53.5]} 22. Qf3 {[%clk 0:01:16.3]}
22... gxh4 {[%clk 0:00:42.8]} 23. Nf5+ {[%clk 0:01:17.3]} 23... Bxf5 {[%clk
0:00:43.8]} 24. Qxf5 {[%clk 0:01:18.7]} 24... Nd6 {[%clk 0:00:43.6]} 25. Qg4
{[%clk 0:01:20.2]} 25... Rg8 {[%clk 0:00:41.3]} 26. Qxh4 {[%clk 0:01:21.4]}
26... Qg6 {[%clk 0:00:35.3]} 27. Ng3 {[%clk 0:01:22.3]} 27... Qg4 {[%clk
0:00:35.7]} 28. Qxg4 {[%clk 0:01:14.6]} 28... Rxg4 {[%clk 0:00:37.6]} 29. Re1
{[%clk 0:01:07.4]} 29... h5 {[%clk 0:00:37.8]} 30. Nxh5 {[%clk 0:00:58.6]} 30...
Rxe4 {[%clk 0:00:38]} 31. Rc1 {[%clk 0:00:58.6]} 31... Nf5 {[%clk 0:00:37.6]}
32. f3 {[%clk 0:00:56.7]} 32... Re2 {[%clk 0:00:27.1]} 33. Kf1 {[%clk
0:00:57.4]} 33... Rxc2 {[%clk 0:00:24.7]} 34. Re1 {[%clk 0:00:53.8]} 34... Rxa2
{[%clk 0:00:23.2]} 35. g4 {[%clk 0:00:55.3]} 35... Nd4 {[%clk 0:00:22.3]} 36. f4
{[%clk 0:00:55.9]} 36... Ke6 {[%clk 0:00:20.8]} 37. f5+ {[%clk 0:00:52.1]} 37...
Kf7 {[%clk 0:00:21.3]} 38. g5 {[%clk 0:00:53.8]} 38... fxg5 {[%clk 0:00:18.8]}
39. Rxe5 {[%clk 0:00:54.8]} 39... Nf3 {[%clk 0:00:14.2]} 40. Re6 {[%clk
0:00:51.4]} 40... Nd2+ {[%clk 0:00:14.7]} 41. Kg1 {[%clk 0:00:50.2]} 41... Nxb3
{[%clk 0:00:15.4]} 42. Rf6+ {[%clk 0:00:51.4]} 42... Ke7 {[%clk 0:00:16.6]} 43.
Rh6 {[%clk 0:00:50.3]} 43... Nd4 {[%clk 0:00:15.8]} 44. Rh7+ {[%clk 0:00:51.2]}
44... Kd6 {[%clk 0:00:16]} 45. f6 {[%clk 0:00:52.8]} 45... Ne6 {[%clk
0:00:11.3]} 46. Rxb7 {[%clk 0:00:51.9]} 46... a5 {[%clk 0:00:11.8]} 47. Ng7
{[%clk 0:00:52.5]} 47... g4 {[%clk 0:00:05.4]} 48. Nxe6 {[%clk 0:00:51.5]} 48...
Kxe6 {[%clk 0:00:03.5]} 49. f7 {[%clk 0:00:52.7]} 49... Ra1+ {[%clk 0:00:03.5]}
50. Kg2 {[%clk 0:00:54]} 50... Ra2+ {[%clk 0:00:03.9]} 51. Kg3 {[%clk
0:00:55.3]} 51... Ra3+ {[%clk 0:00:03.3]} 52. Kxg4 {[%clk 0:00:56.6]} 52... Ra4+
{[%clk 0:00:04.3]} 53. Kg5 {[%clk 0:00:57.7]} 1-0

[Event "*** Titled Tuesday 3|2 Blitz"]
[Site "Chess.com"]
[Date "2016.10.04"]
[Round "5"]
[White "wonderfultime"]
[Black "GGuseinov"]
[Result "0-1"]
[WhiteElo "2687"]
[BlackElo "2632"]
[TimeControl "180+2"]
[EndTime "18:06:07 PDT"]
[Termination "GGuseinov won on time"]

1. d4 {[%clk 0:03:01.9]} 1... Nf6 {[%clk 0:03:00.1]} 2. c4 {[%clk 0:03:02.7]}
2... g6 {[%clk 0:02:52.8]} 3. Nc3 {[%clk 0:02:58.3]} 3... Bg7 {[%clk 0:02:54.7]}
4. e4 {[%clk 0:02:58.9]} 4... O-O {[%clk 0:02:56.6]} 5. f3 {[%clk 0:02:54.9]}
5... d6 {[%clk 0:02:56.3]} 6. Be3 {[%clk 0:02:56.1]} 6... Nc6 {[%clk 0:02:45.1]}
7. Nge2 {[%clk 0:02:53.7]} 7... a6 {[%clk 0:02:46.2]} 8. Qd2 {[%clk 0:02:53.5]}
8... Bd7 {[%clk 0:02:43.6]} 9. Rc1 {[%clk 0:02:52.6]} 9... b5 {[%clk 0:02:37.6]}
10. b3 {[%clk 0:02:47.5]} 10... bxc4 {[%clk 0:02:32.2]} 11. bxc4 {[%clk
0:02:46.3]} 11... Rb8 {[%clk 0:02:34.1]} 12. g3 {[%clk 0:02:04.8]} 12... e5
{[%clk 0:02:22]} 13. d5 {[%clk 0:01:57]} 13... Na5 {[%clk 0:02:19.8]} 14. Nb1
{[%clk 0:01:49.7]} 14... Nxc4 {[%clk 0:02:11.9]} 15. Rxc4 {[%clk 0:01:49.1]}
15... Rxb1+ {[%clk 0:02:10.6]} 16. Kf2 {[%clk 0:01:40.5]} 16... Nh5 {[%clk
0:01:49.4]} 17. Qc2 {[%clk 0:01:35.1]} 17... Rb7 {[%clk 0:01:39.9]} 18. Bg2
{[%clk 0:01:31.1]} 18... f5 {[%clk 0:01:38.4]} 19. exf5 {[%clk 0:01:31.4]} 19...
gxf5 {[%clk 0:01:34.3]} 20. f4 {[%clk 0:01:20]} 20... Nf6 {[%clk 0:01:24.4]} 21.
h3 {[%clk 0:01:18.1]} 21... Qb8 {[%clk 0:01:19.9]} 22. a4 {[%clk 0:00:55.1]}
22... Rb2 {[%clk 0:01:15.6]} 23. Qc1 {[%clk 0:00:56]} 23... Qb3 {[%clk
0:01:04.3]} 24. Re1 {[%clk 0:00:46.6]} 24... Qa2 {[%clk 0:00:54.9]} 25. Kf1
{[%clk 0:00:33.3]} 25... Ne4 {[%clk 0:00:51.5]} 26. Rxc7 {[%clk 0:00:26.5]}
26... Nxg3+ {[%clk 0:00:45.9]} 27. Nxg3 {[%clk 0:00:25.4]} 27... Rxg2 {[%clk
0:00:47.8]} 28. Ne2 {[%clk 0:00:26.1]} 28... Qxd5 {[%clk 0:00:36.7]} 29. Qc4
{[%clk 0:00:26.8]} 29... Qxc4 {[%clk 0:00:36.8]} 30. Rxc4 {[%clk 0:00:28.7]}
30... Rg6 {[%clk 0:00:37]} 31. Rc7 {[%clk 0:00:25.2]} 31... Bxa4 {[%clk
0:00:36.8]} 32. Nc3 {[%clk 0:00:23.7]} 32... Bb5+ {[%clk 0:00:35.1]} 33. Nxb5
{[%clk 0:00:19.1]} 33... axb5 {[%clk 0:00:37]} 34. Rb7 {[%clk 0:00:19.5]} 34...
Rg3 {[%clk 0:00:34.7]} 35. fxe5 {[%clk 0:00:16.5]} 35... dxe5 {[%clk 0:00:34.1]}
36. Bc5 {[%clk 0:00:15.8]} 36... Rc8 {[%clk 0:00:30.9]} 37. Bd6 {[%clk
0:00:17.2]} 37... Re8 {[%clk 0:00:23.3]} 38. Rc1 {[%clk 0:00:11.9]} 38... Rxh3
{[%clk 0:00:20.1]} 39. Rcc7 {[%clk 0:00:12.9]} 39... Rg3 {[%clk 0:00:20.3]} 40.
Rxb5 {[%clk 0:00:14.2]} 40... Rg6 {[%clk 0:00:21]} 41. Bc5 {[%clk 0:00:13.4]}
41... h5 {[%clk 0:00:18.4]} 42. Rb3 {[%clk 0:00:11.6]} 42... f4 {[%clk
0:00:14.8]} 43. Rh3 {[%clk 0:00:09.9]} 43... e4 {[%clk 0:00:15.2]} 44. Rxh5
{[%clk 0:00:10.6]} 44... e3 {[%clk 0:00:16.5]} 45. Ke2 {[%clk 0:00:02.6]} 45...
Rg2+ {[%clk 0:00:14.2]} 46. Kf3 {[%clk 0:00:04.2]} 46... e2 {[%clk 0:00:13.9]}
47. Bb4 {[%clk 0:00:03.1]} 47... Rg1 {[%clk 0:00:13]} 0-1

[Event "*** Titled Tuesday 3|2 Blitz"]
[Site "Chess.com"]
[Date "2016.10.04"]
[Round "5"]
[White "maciek_92"]
[Black "Iball95"]
[Result "1-0"]
[WhiteElo "2615"]
[BlackElo "2498"]
[TimeControl "180+2"]
[EndTime "18:06:35 PDT"]
[Termination "maciek_92 won by checkmate"]

1. c4 {[%clk 0:03:01.9]} 1... c5 {[%clk 0:02:59.3]} 2. Nf3 {[%clk 0:03:02.6]}
2... Nf6 {[%clk 0:03:00.8]} 3. d4 {[%clk 0:03:03.4]} 3... cxd4 {[%clk
0:03:01.7]} 4. Nxd4 {[%clk 0:03:05.3]} 4... Nc6 {[%clk 0:02:57.6]} 5. Nc3 {[%clk
0:03:06]} 5... g6 {[%clk 0:02:55.6]} 6. e4 {[%clk 0:03:04.9]} 6... d6 {[%clk
0:02:57]} 7. Be2 {[%clk 0:03:02.9]} 7... Nxd4 {[%clk 0:02:58.3]} 8. Qxd4 {[%clk
0:03:04.7]} 8... Bg7 {[%clk 0:02:59.9]} 9. Be3 {[%clk 0:03:06.2]} 9... O-O
{[%clk 0:03:01]} 10. Qd2 {[%clk 0:03:07.8]} 10... a5 {[%clk 0:03:00.9]} 11. O-O
{[%clk 0:03:08.4]} 11... a4 {[%clk 0:03:02.4]} 12. Bd4 {[%clk 0:03:05.3]} 12...
Qa5 {[%clk 0:03:01.7]} 13. Rfd1 {[%clk 0:03:05.2]} 13... Be6 {[%clk 0:02:59.9]}
14. Qe3 {[%clk 0:03:01.9]} 14... Nd7 {[%clk 0:02:28.6]} 15. Bxg7 {[%clk
0:02:40.6]} 15... Kxg7 {[%clk 0:02:30.5]} 16. Nb5 {[%clk 0:02:41.3]} 16... Rfc8
{[%clk 0:02:23.7]} 17. Rac1 {[%clk 0:02:19.1]} 17... Qb4 {[%clk 0:02:21.9]} 18.
Qd4+ {[%clk 0:02:10.2]} 18... f6 {[%clk 0:02:21.4]} 19. a3 {[%clk 0:01:55.7]}
19... Qc5 {[%clk 0:02:21.6]} 20. f4 {[%clk 0:01:41.4]} 20... Qxd4+ {[%clk
0:02:20.7]} 21. Nxd4 {[%clk 0:01:42.4]} 21... Bf7 {[%clk 0:02:21.5]} 22. Bg4
{[%clk 0:01:43.3]} 22... Rd8 {[%clk 0:02:15.8]} 23. Bxd7 {[%clk 0:01:40.7]}
23... Rxd7 {[%clk 0:02:17.7]} 24. e5 {[%clk 0:01:42.1]} 24... Rc7 {[%clk
0:01:50.2]} 25. exd6 {[%clk 0:01:29.4]} 25... exd6 {[%clk 0:01:52.1]} 26. Nb5
{[%clk 0:01:29.9]} 26... Rxc4 {[%clk 0:01:52.9]} 27. Rxc4 {[%clk 0:01:28.4]}
27... Bxc4 {[%clk 0:01:54.8]} 28. Nxd6 {[%clk 0:01:30]} 28... Bb3 {[%clk
0:01:41.4]} 29. Rc1 {[%clk 0:01:28]} 29... Rd8 {[%clk 0:01:40]} 30. Rc7+ {[%clk
0:01:12.5]} 30... Kg8 {[%clk 0:01:38.4]} 31. Rc8 {[%clk 0:01:02.8]} 31... Rxc8
{[%clk 0:01:32.8]} 32. Nxc8 {[%clk 0:01:04.7]} 32... Kf8 {[%clk 0:01:17.7]} 33.
Kf2 {[%clk 0:00:59.8]} 33... Bd5 {[%clk 0:01:08.7]} 34. Nb6 {[%clk 0:00:54]}
34... Bc6 {[%clk 0:01:09.4]} 35. g3 {[%clk 0:00:54.4]} 35... Ke7 {[%clk
0:01:10.6]} 36. Ke3 {[%clk 0:00:56.1]} 36... Ke6 {[%clk 0:01:07.4]} 37. Nc4
{[%clk 0:00:35.5]} 37... Kf5 {[%clk 0:01:01.4]} 38. h3 {[%clk 0:00:28.6]} 38...
h5 {[%clk 0:00:52]} 39. Kd4 {[%clk 0:00:27.5]} 39... h4 {[%clk 0:00:50]} 40.
Ne3+ {[%clk 0:00:26.7]} 40... Ke6 {[%clk 0:00:49.7]} 41. gxh4 {[%clk 0:00:27.5]}
41... f5 {[%clk 0:00:40.9]} 42. h5 {[%clk 0:00:26.8]} 42... gxh5 {[%clk
0:00:41.6]} 43. h4 {[%clk 0:00:28.1]} 43... Be4 {[%clk 0:00:40]} 44. Kc5 {[%clk
0:00:28.4]} 44... Bc6 {[%clk 0:00:36.2]} 45. Nc2 {[%clk 0:00:27.1]} 45... Be4
{[%clk 0:00:33]} 46. Nd4+ {[%clk 0:00:28.1]} 46... Kd7 {[%clk 0:00:34.1]} 47.
Ne2 {[%clk 0:00:11.3]} 47... Bf3 {[%clk 0:00:30.2]} 48. Ng3 {[%clk 0:00:09.8]}
48... Bg4 {[%clk 0:00:29.5]} 49. Kd5 {[%clk 0:00:11.1]} 49... b6 {[%clk
0:00:21.7]} 50. Ke5 {[%clk 0:00:12.3]} 50... Kc6 {[%clk 0:00:23.2]} 51. Nxf5
{[%clk 0:00:13.6]} 51... Kc5 {[%clk 0:00:24.9]} 52. Ne3 {[%clk 0:00:14.7]} 52...
Be2 {[%clk 0:00:21.5]} 53. f5 {[%clk 0:00:15.8]} 53... Kc6 {[%clk 0:00:23.1]}
54. Ke6 {[%clk 0:00:15.1]} 54... Bd3 {[%clk 0:00:07.6]} 55. f6 {[%clk
0:00:16.2]} 55... Bg6 {[%clk 0:00:08.7]} 56. Nc4 {[%clk 0:00:10.9]} 56... Kc5
{[%clk 0:00:08.4]} 57. Ne5 {[%clk 0:00:11.9]} 57... Be8 {[%clk 0:00:05.1]} 58.
Ke7 {[%clk 0:00:13.1]} 58... b5 {[%clk 0:00:06.5]} 59. Kxe8 {[%clk 0:00:14.2]}
59... b4 {[%clk 0:00:08.4]} 60. axb4+ {[%clk 0:00:15.1]} 60... Kxb4 {[%clk
0:00:09]} 61. f7 {[%clk 0:00:16.6]} 61... a3 {[%clk 0:00:10.9]} 62. f8=Q+ {[%clk
0:00:17.5]} 62... Kb3 {[%clk 0:00:12.8]} 63. Qxa3+ {[%clk 0:00:18.7]} 63... Kc2
{[%clk 0:00:14.7]} 64. Qd3+ {[%clk 0:00:19.9]} 64... Kxb2 {[%clk 0:00:15.3]} 65.
Nc4+ {[%clk 0:00:20.1]} 65... Ka2 {[%clk 0:00:17.2]} 66. Qa3+ {[%clk 0:00:20.7]}
66... Kb1 {[%clk 0:00:18.3]} 67. Qb2# {[%clk 0:00:22.6]} 1-0